bitfinex-derivatives/quotes_SOLF0:USTF0_20250514
["timestamp","ask_amount","ask_price","bid_price","bid_amount"]
[1747181985379,5.4459,183.6,183.56,5.4467]
[1747181985775,5.4459,183.6,183.57,5.4466]
[1747181986175,61.24,183.67,183.54,61.24]
[1747181986374,61.24,183.67,183.61,5.4452]
[1747181986574,61.24,183.67,183.59,61.24]
[1747181987173,5.445,183.63,183.59,61.24]
[1747181988177,5.4447,183.64,183.59,61.24]
[1747181988379,5.4447,183.64,183.61,5.4454]
[1747181988679,61.24,183.67,183.59,61.24]
[1747181988977,61.24,183.67,183.6,5.4458]
[1747181989177,61.24,183.67,183.55,63.6951]
[1747181989178,5.4458,183.6,183.55,63.6951]
[1747181989375,61.24,183.67,183.55,63.6951]
[1747181989574,3.5472,183.69,183.55,63.6951]
[1747181989774,62.4,183.66,183.55,63.6951]
[1747181990878,5.4476,183.54,183.5,63.9773]
[1747181991078,62.7,183.6,183.5,63.9773]
[1747181991274,62.7,183.6,183.5,62.26]
[1747181992177,5.4475,183.54,183.5,62.26]
[1747181992485,62.7,183.6,183.5,62.26]
[1747181993685,5.4476,183.54,183.5,67.7085]
[1747181994481,5.4478,183.53,183.5,67.7085]
[1747181994784,62.7,183.6,183.5,62.26]
[1747181994985,5.4477,183.54,183.5,62.26]
[1747181995286,62.7,183.6,183.5,62.26]
[1747181995788,62.7,183.6,183.5,67.7087]
[1747181996590,5.4475,183.55,183.5,67.7087]
[1747181996783,62.7,183.6,183.5,67.7087]
[1747181997588,5.4475,183.55,183.5,67.7087]
[1747181997790,62.7,183.6,183.5,62.26]
[1747181998088,5.4466,183.58,183.5,62.26]
[1747181998298,62.7,183.6,183.5,62.26]
[1747181998593,5.4464,183.58,183.5,62.26]
[1747181998794,5.4464,183.58,183.53,5.4476]
[1747181999197,5.4464,183.58,183.5,62.26]
[1747181999795,5.4467,183.57,183.5,62.26]
[1747182000293,5.4464,183.58,183.5,62.26]
[1747182000795,5.4461,183.59,183.5,62.26]
[1747182001094,472.5473,183.67,183.5,62.26]
[1747182001294,5.446,183.6,183.5,62.26]
[1747182001695,125.6581178,183.66,183.5,62.26]
[1747182001696,534.8273,183.67,183.5,62.26]
[1747182001894,534.8273,183.67,183.5,285.26]
[1747182001895,5.4454,183.62,183.5,285.26]
[1747182002092,472.5473,183.67,183.5,285.26]
[1747182002297,5.4448,183.64,183.5,285.26]
[1747182002786,5.4448,183.64,183.6,5.4455]
[1747182003798,62.42,183.68,183.59,5.446]
[1747182003993,62.42,183.68,183.5,223.0]
[1747182004193,62.42,183.68,183.51,130.0747]
[1747182004395,5.4458,183.6,183.56,5.4467]
[1747182004898,62.42,183.63,183.56,5.4467]
[1747182005394,62.4,183.66,183.56,62.26]
[1747182006601,5.4449,183.63,183.56,62.26]
[1747182007000,5.4449,183.63,183.59,5.4459]
[1747182007494,5.4449,183.63,183.6,5.4457]
[1747182007698,3.5472,183.69,183.56,62.26]
[1747182007997,124.5,183.7,183.57,62.24]
[1747182008197,124.5,183.7,183.58,3.5231]
[1747182008499,124.5,183.7,183.59,1.7571]
[1747182008800,124.5,183.7,183.63,5.4449]
[1747182009500,5.444,183.67,183.63,5.4449]
[1747182009801,62.26,183.7,183.61,62.26]
[1747182010197,62.26,183.7,183.64,5.4445]
[1747182010396,62.18,183.71,183.64,5.4445]
[1747182010595,5.4438,183.67,183.64,5.4445]
[1747182010795,62.18,183.71,183.61,62.26]
[1747182011096,5.4442,183.66,183.63,5.4448]
[1747182011296,62.26,183.69,183.59,1.7571]
[1747182011599,5.4447,183.64,183.61,5.4454]
[1747182012805,5.4449,183.63,183.6,5.4457]
[1747182013108,62.26,183.69,183.59,1.7571]
[1747182013307,5.4448,183.64,183.6,5.4457]
[1747182013610,1.8554,183.74,183.59,1.7571]
[1747182013800,5.4436,183.68,183.64,5.4444]
[1747182014006,124.44,183.73,183.64,5.4444]
[1747182014407,5.4436,183.68,183.64,5.4444]
[1747182014607,124.44,183.73,183.63,62.26]
[1747182014608,124.44,183.73,183.63,67.7048]
[1747182014798,124.44,183.73,183.63,62.26]
[1747182015407,124.44,183.73,183.64,5.4445]
[1747182016407,124.44,183.73,183.63,67.7048]
[1747182016606,124.44,183.73,183.63,62.26]
[1747182016807,5.4437,183.68,183.63,62.26]
[1747182017012,124.44,183.73,183.64,5.4445]
[1747182018609,124.44,183.73,183.63,67.7048]
[1747182018805,124.44,183.73,183.63,62.26]
[1747182019109,5.4438,183.67,183.63,62.26]
[1747182019311,124.44,183.73,183.63,62.26]
[1747182019912,62.26,183.73,183.63,62.26]
[1747182020413,5.4425,183.71,183.63,62.26]
[1747182020907,5.4419,183.73,183.63,62.26]
[1747182021211,130.18822469,183.76,183.63,62.26]
[1747182021606,5.4419,183.73,183.63,62.26]
[1747182022319,5.4422,183.72,183.63,62.26]
[1747182022718,124.26,183.77,183.63,62.26]
[1747182023214,0.95853485,183.76,183.65,5.4442]
[1747182024011,0.95853485,183.76,183.66,5.4439]
[1747182024312,0.95853485,183.76,183.63,62.26]
[1747182024611,62.18,183.76,183.63,62.26]
[1747182024811,5.4417,183.74,183.63,62.26]
[1747182025414,62.18,183.76,183.67,5.4435]
[1747182025615,62.18,183.76,183.68,62.14]
[1747182025914,5.4422,183.73,183.68,62.14]
[1747182026112,62.18,183.76,183.68,62.14]
[1747182026416,62.14,183.77,183.68,62.14]
[1747182027018,5.4421,183.73,183.69,5.4428]
[1747182027317,62.14,183.77,183.69,5.4428]
[1747182027513,5.4428,183.71,183.68,62.14]
[1747182028517,62.14,183.77,183.67,5.4436]
[1747182028915,5.4427,183.71,183.67,5.4436]
[1747182029217,62.14,183.77,183.66,5.4439]
[1747182029418,5.4433,183.69,183.65,62.12]
[1747182030318,5.4437,183.67,183.65,62.12]
[1747182031018,5.4434,183.68,183.65,62.12]
[1747182031221,61.82,183.73,183.65,62.12]
[1747182031719,62.14,183.77,183.65,62.12]
[1747182031924,1.7578,183.8,183.66,67.3253]
[1747182032122,5.4411,183.76,183.66,67.3253]
[1747182032318,61.98,183.79,183.66,67.3253]
[1747182033321,5.4414,183.75,183.66,67.3253]
[1747182033522,61.98,183.79,183.66,67.3253]
[1747182034225,5.4411,183.76,183.66,67.3253]
[1747182034821,5.4411,183.76,183.73,5.4419]
[1747182035921,65.5541,183.81,183.75,5.4411]
[1747182036122,62.77819359,183.8,183.7,62.12]
[1747182036421,61.82,183.8,183.7,62.12]
[1747182036621,5.4406,183.78,183.74,5.4415]
[1747182036818,1.7158,183.84,183.71,61.8]
[1747182037022,62.75838122,183.83,183.71,61.8]
[1747182037222,61.8,183.83,183.71,61.8]
[1747182037726,61.8,183.83,183.75,5.4411]
[1747182039020,61.8,183.83,183.76,5.441]
[1747182039529,1.7158,183.84,183.76,5.441]
[1747182039730,5.4396,183.81,183.77,5.4407]
[1747182039924,532.72,183.85,183.75,62.12]
[1747182040124,61.68,183.84,183.76,1.8551]
[1747182040324,5.4393,183.82,183.78,5.4404]
[1747182040923,5.439,183.83,183.79,5.44]
[1747182041124,62.12,183.85,183.76,1.8551]
[1747182041430,62.12,183.85,183.77,1.8648]
[1747182041723,5.4392,183.83,183.77,1.8648]
[1747182042028,62.12,183.85,183.77,1.8648]
[1747182042329,62.12,183.85,183.77,7.3055]
[1747182042531,62.12,183.85,183.77,1.8648]
[1747182042922,62.12,183.85,183.78,5.4404]
[1747182043127,62.12,183.85,183.76,61.62]
[1747182043527,62.12,183.85,183.78,5.4403]
[1747182043930,5.4392,183.83,183.79,5.4401]
[1747182044223,62.12,183.85,183.79,5.4401]
[1747182044930,5.4394,183.82,183.79,5.4401]
[1747182045230,62.12,183.85,183.78,5.4404]
[1747182045631,5.4394,183.82,183.78,5.4404]
[1747182045931,62.12,183.85,183.77,5.4406]
[1747182046131,62.12,183.85,183.76,61.62]
[1747182046830,62.12,183.85,183.78,5.4402]
[1747182047026,5.4393,183.82,183.78,5.4402]
[1747182048230,5.4393,183.82,183.76,61.62]
[1747182048231,62.1,183.81,183.69,470.4]
[1747182048436,62.1,183.8,183.69,470.4]
[1747182048731,62.1,183.8,183.71,5.4424]
[1747182048935,62.1,183.8,183.69,470.4]
[1747182049329,5.4418,183.74,183.7,5.4426]
[1747182049635,62.1,183.8,183.69,470.4]
[1747182050535,62.1,183.8,183.74,5.4414]
[1747182051030,5.441,183.77,183.73,5.4418]
[1747182051733,5.441,183.77,183.74,5.4416]
[1747182052332,62.1,183.8,183.75,5.4413]
[1747182052539,62.1,183.81,183.73,62.14]
[1747182053937,62.1,183.81,183.76,5.4408]
[1747182054132,129.5246,183.84,183.76,5.4408]
[1747182054343,62.04,183.84,183.74,3.5873]
[1747182055537,5.4392,183.83,183.79,5.44]
[1747182056030,62.04,183.84,183.79,5.44]
[1747182056834,62.14,183.88,183.79,5.44]
[1747182057033,62.08,183.87,183.79,5.44]
[1747182057234,62.14,183.88,183.79,5.44]
[1747182057433,62.1,183.87,183.79,5.44]
[1747182058539,5.4392,183.83,183.79,5.44]
[1747182058734,62.1,183.87,183.79,5.44]
[1747182059038,62.1,183.87,183.78,67.5803]
[1747182059234,62.1,183.87,183.78,62.14]
[1747182059532,62.1,183.87,183.79,5.4401]
[1747182059837,62.14,183.88,183.78,62.14]
[1747182060041,124.06,183.88,183.81,5.4393]
[1747182060436,62.14,183.88,183.82,5.4392]
[1747182060642,62.14,183.88,183.78,62.14]
[1747182061343,5.4385,183.85,183.78,62.14]
[1747182061843,5.4385,183.85,183.81,5.4394]
[1747182062643,5.4385,183.85,183.82,5.4391]
[1747182062843,5.4377,183.88,183.78,62.14]
[1747182063443,5.4378,183.87,183.78,62.14]
[1747182063645,62.14,183.92,183.78,62.14]
[1747182063846,123.98,183.92,183.78,62.14]
[1747182064144,62.14,183.92,183.78,62.14]
[1747182064345,62.14,183.97,183.78,285.14]
[1747182064837,5.4363,183.92,183.78,285.14]
[1747182065040,123.94,183.97,183.78,285.14]
[1747182065244,5.4361,183.93,183.9,5.4368]
[1747182065444,123.94,183.97,183.88,62.14]
[1747182065644,5.4361,183.93,183.89,5.4369]
[1747182066147,123.94,183.97,183.89,5.4369]
[1747182066651,123.94,183.97,183.88,62.14]
[1747182066839,5.4361,183.93,183.88,62.14]
[1747182067044,123.94,183.97,183.88,62.14]
[1747182067846,5.4362,183.93,183.88,62.14]
[1747182068851,5.4357,183.94,183.9,5.4367]
[1747182069147,62.14,183.97,183.88,62.14]
[1747182069451,1.8535,184.0,183.88,62.14]
[1747182069650,5.4351,183.97,183.92,5.4362]
[1747182070156,5.4351,183.97,183.93,5.4359]
[1747182070353,5.4346,183.98,183.91,61.78]
[1747182070552,123.96,184.02,183.93,5.436]
[1747182070951,5.435,183.97,183.93,5.436]
[1747182071249,123.92,184.02,183.93,62.1]
[1747182071551,5.4344,183.99,183.93,62.1]
[1747182071752,5.4344,183.99,183.95,5.4352]
[1747182072253,61.7,184.05,183.93,62.1]
[1747182072452,0.95634219,184.04,183.93,62.1]
[1747182073054,0.95634219,184.04,183.89,5.5194]
[1747182073247,0.95634219,184.04,183.92,5.4361]
[1747182073552,0.95634219,184.04,183.64,2.07861553]
[1747182073553,0.95634219,184.04,183.88,62.1]
[1747182073752,0.95634219,184.04,183.87,124.02]
[1747182074145,5.4374,183.89,183.82,5.4954]
[1747182074347,5.4374,183.89,183.83,62.1]
[1747182074555,5.4374,183.89,183.85,5.4381]
[1747182075364,5.4374,183.89,183.86,5.438]
[1747182076862,5.4374,183.89,183.85,5.4383]
[1747182077059,5.4375,183.88,183.85,5.4383]
[1747182077464,5.4372,183.9,183.86,5.438]
[1747182078164,5.4372,183.89,183.86,5.438]
[1747182078464,5.4372,183.89,183.85,5.4383]
[1747182079265,5.4372,183.89,183.86,5.438]
[1747182080667,5.437,183.9,183.86,5.438]
[1747182080867,62.1,183.94,183.83,123.9]
[1747182081360,5.4376,183.88,183.83,123.9]
[1747182081761,62.1,183.94,183.83,62.1]
[1747182081966,5.3981,183.93,183.83,62.1]
[1747182082369,5.4385,183.85,183.83,62.1]
[1747182082767,61.68,183.9,183.83,62.1]
[1747182082967,5.4386,183.84,183.83,62.1]
[1747182083373,61.68,183.9,183.79,123.4]
[1747182083571,61.68,183.9,183.8,5.4396]
[1747182084471,5.4389,183.84,183.8,5.4396]
[1747182084664,61.68,183.9,183.8,5.4396]
[1747182085068,5.4389,183.84,183.8,5.4396]
[1747182085572,5.4384,183.85,183.79,123.4]
[1747182085774,61.68,183.9,183.79,123.4]
[1747182086073,5.4382,183.86,183.79,123.4]
[1747182086667,5.3981,183.93,183.79,123.4]
[1747182086874,66.9581,183.93,183.79,123.4]
[1747182087269,5.4374,183.89,183.85,5.4382]
[1747182087568,5.4374,183.89,183.85,61.7]
[1747182087976,66.9581,183.93,183.85,61.7]
[1747182088167,66.9581,183.93,183.82,61.7]
[1747182088471,66.9581,183.93,183.83,5.4389]
[1747182089073,66.9581,183.93,183.82,61.7]
[1747182089271,5.3981,183.93,183.82,61.7]
[1747182089472,5.4388,183.84,183.8,5.4397]
[1747182089872,67.0581,183.93,183.78,61.7]
[1747182090174,5.3981,183.93,183.78,61.7]
[1747182090671,5.3981,183.93,183.79,61.7]
[1747182090968,0.95488532,183.92,183.79,61.7]
[1747182091173,5.4389,183.84,183.79,67.1399]
[1747182091375,62.92,183.87,183.79,61.7]
[1747182091769,62.98,183.91,183.79,61.7]
[1747182091975,67.0981,183.93,183.79,61.7]
[1747182092470,5.4375,183.89,183.84,5.4384]
[1747182092671,67.0981,183.93,183.84,5.4384]
[1747182092974,67.0981,183.93,183.83,5.4389]
[1747182093272,67.0981,183.93,183.8,62.9]
[1747182093474,67.0981,183.93,183.82,5.4392]
[1747182093770,67.0981,183.93,183.8,62.9]
[1747182094279,67.0981,183.93,183.83,5.4389]
[1747182094479,67.0981,183.93,183.8,62.9]
[1747182094876,5.4371,183.9,183.85,5.4381]
[1747182095378,5.4371,183.9,183.84,61.7]
[1747182095576,61.7,183.93,183.84,61.7]
[1747182095776,61.7,183.97,183.85,62.9]
[1747182095977,63.85453371,183.96,183.85,66.479]
[1747182096178,5.4361,183.93,183.89,5.4372]
[1747182096879,62.9,183.96,183.85,66.479]
[1747182097073,62.9,183.96,183.85,65.279]
[1747182097268,0.95455907,183.95,183.85,61.7]
[1747182097877,0.95455907,183.95,183.81,61.7]
[1747182098483,5.4383,183.86,183.82,5.439]
[1747182098884,5.4383,183.86,183.81,61.7]
[1747182099189,5.4379,183.87,183.81,61.7]
[1747182099584,124.64,183.92,183.84,5.4386]
[1747182099785,5.4378,183.87,183.84,5.4386]
[1747182099984,124.64,183.92,183.81,61.7]
[1747182100183,124.64,183.92,183.84,5.4386]
[1747182100384,5.4384,183.85,183.81,61.7]
[1747182100882,5.4384,183.85,183.82,5.4392]
[1747182101587,5.4381,183.86,183.83,5.4389]
[1747182101785,5.4381,183.86,183.81,61.7]
[1747182101986,124.64,183.92,183.81,61.7]
[1747182102186,124.64,183.92,183.82,5.4391]
[1747182102686,5.4387,183.84,183.81,67.1395]
[1747182103086,124.64,183.92,183.81,61.7]
[1747182103287,124.64,183.92,183.78,3.6344]
[1747182103486,6.50915596,183.91,183.75,63.5844]
[1747182103686,5.5551,183.91,183.75,63.5844]
[1747182103887,5.4399,183.8,183.75,63.5844]
[1747182105088,61.7,183.86,183.75,63.5844]
[1747182105285,62.86,183.87,183.75,63.5844]
[1747182105587,62.86,183.87,183.82,5.439]
[1747182105983,62.86,183.87,183.83,5.4389]
[1747182106684,5.4383,183.86,183.83,5.4389]
[1747182107083,62.86,183.87,183.8,63.4582]
[1747182107485,62.86,183.87,183.81,5.4395]
[1747182107685,5.4386,183.85,183.8,63.4582]
[1747182108490,5.4386,183.85,183.82,5.439]
[1747182108688,5.4381,183.86,183.8,63.4582]
[1747182108991,5.4381,183.86,183.82,5.439]
[1747182109188,5.4385,183.85,183.82,5.439]
[1747182110489,5.4382,183.86,183.83,5.4389]
[1747182110689,61.7,183.9,183.8,65.2349]
[1747182111389,62.56,183.94,183.8,65.2349]
[1747182111687,5.4361,183.93,183.85,5.4383]
[1747182111891,125.14,183.97,183.86,126.8865]
[1747182112193,125.14,183.97,183.87,66.2275]
[1747182112491,62.56,183.97,183.91,5.4364]
[1747182113393,62.6,183.98,183.92,5.4362]
[1747182113789,5.4353,183.96,183.92,5.4362]
[1747182114289,5.4347,183.98,183.87,66.2275]
[1747182114590,62.56,184.01,183.87,66.2275]
[1747182114785,62.56,184.02,183.87,66.2275]
[1747182114986,62.56,184.04,183.87,66.2275]
[1747182115186,62.56,184.04,183.87,289.2275]
[1747182115387,5.4341,184.0,183.96,5.435]
[1747182116693,5.4337,184.01,183.97,5.4348]
[1747182116896,62.58,184.05,183.96,3.6361]
[1747182117793,5.4337,184.01,183.97,5.4347]
[1747182118996,5.434,184.0,183.97,5.4347]
[1747182119401,5.434,184.0,183.96,9.0711]
[1747182119893,5.434,184.0,183.96,3.6361]
[1747182120197,62.58,184.05,183.97,5.4345]
[1747182120701,5.4341,184.0,183.96,9.071]
[1747182121199,5.435,183.97,183.93,67.9758]
[1747182121500,62.58,184.05,183.91,62.54]
[1747182121700,62.54,184.04,183.91,67.9763]
[1747182121896,63.49482182,184.04,183.91,62.54]
[1747182122297,5.4348,183.98,183.91,62.54]
[1747182122497,5.38904267,184.03,183.91,62.54]
[1747182122697,62.52,184.01,183.91,62.54]
[1747182123399,62.52,184.01,183.91,67.9764]
[1747182123698,62.52,184.01,183.91,62.54]
[1747182124395,5.4346,183.98,183.94,5.4355]
[1747182124601,5.4346,183.98,183.91,62.54]
[1747182124901,5.4343,183.99,183.95,5.4352]
[1747182125198,62.74,184.03,183.95,5.4352]
[1747182125703,62.74,184.03,183.93,5.38904267]
[1747182126300,5.4345,183.99,183.95,5.4354]
[1747182126700,5.4345,183.99,183.93,5.38904267]
[1747182126701,62.74,184.03,183.93,5.38904267]
[1747182127000,62.74,184.03,183.93,5.4358]
[1747182127400,62.74,184.03,183.92,62.7]
[1747182127603,62.74,184.03,183.9,5.38904267]
[1747182127801,62.74,184.03,183.92,62.52]
[1747182127995,68.12904267,184.03,183.92,62.52]
[1747182128395,0.95503078,184.02,183.89,1.8536]
[1747182128600,1.7852,184.01,183.89,64.3736]
[1747182128803,62.52,184.0,183.89,64.3736]
[1747182129700,67.90904267,184.0,183.89,62.52]
[1747182129898,0.95491559,183.99,183.89,62.52]
[1747182130102,5.4358,183.94,183.89,62.52]
[1747182130499,5.4352,183.96,183.89,62.52]
[1747182130692,62.68,183.98,183.89,62.52]
[1747182131102,5.4351,183.96,183.92,5.4361]
[1747182131598,5.4355,183.95,183.92,5.4361]
[1747182131803,62.68,183.98,183.88,1.7852]
[1747182132003,62.68,183.98,183.89,62.52]
[1747182132305,5.4361,183.93,183.89,67.9569]
[1747182132501,62.68,183.98,183.89,67.9569]
[1747182133400,5.4362,183.93,183.9,5.4368]
[1747182133600,5.4362,183.93,183.89,62.52]
[1747182133902,5.4362,183.93,183.89,67.9571]
[1747182134303,5.4362,183.93,183.89,62.52]
[1747182135109,5.4362,183.93,183.89,5.4371]
[1747182135304,5.4363,183.92,183.89,5.4371]
[1747182135506,62.68,183.98,183.89,5.4371]
[1747182135805,68.06904267,183.98,183.83,470.02]
[1747182136005,5.38904267,183.92,183.77,62.52]
[1747182136200,130.3981,183.91,183.77,62.52]
[1747182136911,5.38904267,183.88,183.72,39.49451587]
[1747182137114,5.38904267,183.85,183.72,39.49451587]
[1747182137312,125.18,183.84,183.72,43.93676146]
[1747182137505,62.66,183.83,183.77,5.4405]
[1747182137707,5.38904267,183.88,183.75,5.38904267]
[1747182137909,125.2,183.87,183.77,5.4407]
[1747182138413,5.4395,183.82,183.77,5.4407]
[1747182138816,5.4395,183.82,183.74,62.52]
[1747182138817,125.2,183.87,183.74,62.52]
[1747182139017,5.439,183.83,183.74,62.52]
[1747182139217,125.2,183.87,183.74,62.52]
[1747182139715,125.2,183.87,183.78,5.4402]
[1747182140215,125.2,183.87,183.74,62.52]
[1747182141112,125.2,183.87,183.74,71.15455699]
[1747182141318,62.9,183.87,183.74,71.15455699]
[1747182141513,5.4384,183.85,183.81,5.4393]
[1747182141720,5.4384,183.85,183.79,62.88]
[1747182143019,130.06848722,183.92,183.79,62.88]
[1747182143219,193.04848722,183.92,183.79,62.88]
[1747182143923,5.4377,183.88,183.83,5.4387]
[1747182144223,5.4377,183.88,183.79,62.88]
[1747182144425,193.04848722,183.92,183.79,62.88]
[1747182145126,5.4377,183.88,183.79,62.88]
[1747182146020,193.04848722,183.92,183.82,5.439]
[1747182146220,193.04848722,183.92,183.79,62.88]
[1747182147228,5.4379,183.87,183.79,62.88]
[1747182147526,130.06848722,183.92,183.79,62.88]
[1747182147721,5.437,183.9,183.79,62.88]
[1747182147926,5.437,183.9,183.86,5.4378]
[1747182148228,5.437,183.9,183.84,62.9]
[1747182148423,62.9,183.93,183.84,62.9]
[1747182148624,532.72,183.99,183.86,8.63455699]
[1747182148820,5.4356,183.95,183.87,1.8637]
[1747182149020,5.4356,183.95,183.91,5.4364]
[1747182149220,62.86,183.98,183.89,62.9]
[1747182149422,5.4354,183.95,183.89,62.9]
[1747182149619,5.4354,183.95,183.92,5.4362]
[1747182149923,125.7,183.99,183.89,62.9]
[1747182150123,125.7,183.99,183.9,5.4368]
[1747182150523,5.4359,183.94,183.9,5.4368]
[1747182150718,125.7,183.99,183.89,68.3371]
[1747182150925,125.7,183.99,183.89,62.9]
[1747182151128,5.4362,183.93,183.89,62.9]
[1747182151328,125.7,183.99,183.89,62.9]
[1747182151527,125.7,183.99,183.85,66.5335]
[1747182151717,5.4371,183.9,183.85,66.5335]
[1747182151922,5.4371,183.9,183.86,5.4378]
[1747182152220,62.7,183.94,183.85,62.9]
[1747182152427,125.6,183.94,183.85,62.9]
[1747182152824,125.6,183.94,183.82,5.4392]
[1747182153028,125.6,183.94,183.8,3.488]
[1747182153029,5.354,183.93,183.81,62.9]
[1747182153226,19.50335699,183.99,183.81,62.9]
[1747182153422,131.86946097,183.98,183.81,62.9]
[1747182153624,130.914,183.98,183.81,62.9]
[1747182153826,5.4376,183.88,183.81,62.9]
[1747182154127,125.58,183.93,183.81,125.64]
[1747182154426,62.9,183.92,183.81,125.64]
[1747182154929,5.4377,183.88,183.83,5.4387]
[1747182155128,62.9,183.92,183.81,125.64]
[1747182156629,5.4369,183.9,183.87,5.4377]
[1747182157025,62.9,183.96,183.81,125.64]
[1747182157234,62.9,183.96,183.83,8.63455699]
[1747182157531,62.56,183.98,183.87,8.63455699]
[1747182157741,62.56,183.98,183.88,129.0785]
[1747182158630,5.436,183.93,183.9,5.4368]
[1747182159334,5.436,183.93,183.88,129.0785]
[1747182159335,5.4356,183.95,183.91,5.4365]
[1747182159534,62.58,183.98,183.88,129.0785]
[1747182159827,62.58,183.98,183.89,1.7012]
[1747182160036,62.58,183.98,183.88,125.5]
[1747182160534,5.4362,183.93,183.88,125.5]
[1747182161734,5.4362,183.93,183.89,5.437]
[1747182162434,5.4358,183.94,183.9,5.4366]
[1747182162635,63.06,183.99,183.88,125.5]
[1747182162933,63.06,183.99,183.89,1.8166]
[1747182163135,5.4354,183.96,183.92,5.4361]
[1747182163334,62.9,184.01,183.92,5.4361]
[1747182163535,5.4356,183.95,183.92,5.4361]
[1747182164034,63.04,184.0,183.92,5.4361]
[1747182164535,62.9,184.01,183.93,5.4359]
[1747182164737,125.92,184.01,183.9,3.5585]
[1747182165036,125.92,184.01,183.93,5.4358]
[1747182165236,5.435,183.97,183.93,5.4358]
[1747182165735,5.435,183.97,183.94,5.4356]
[1747182166235,5.4346,183.98,183.94,5.4356]
[1747182166427,125.84,184.01,183.91,5.4364]
[1747182166630,0.95589531,184.0,183.91,5.4364]
[1747182167735,5.436,183.93,183.9,5.4368]
[1747182167939,5.436,183.93,183.88,125.5]
[1747182168131,125.84,184.01,183.88,125.5]
[1747182168331,5.4363,183.93,183.89,5.4371]
[1747182169034,5.4357,183.94,183.9,5.4368]
[1747182169433,5.4357,183.94,183.88,125.5]
[1747182169632,62.86,183.96,183.88,125.5]
[1747182169838,62.88,184.0,183.88,125.5]
[1747182170340,5.4352,183.96,183.88,125.5]
[1747182170738,5.4352,183.96,183.93,5.4359]
[1747182171335,62.9,184.01,183.88,125.5]
[1747182171637,129.96305811,184.07,183.93,8.63455699]
[1747182171838,129.96305811,184.07,183.94,130.8439]
[1747182172229,5.4329,184.04,184.01,5.4334]
[1747182173437,62.7,184.07,183.99,62.76]
[1747182173636,62.76,184.1,183.99,125.56]
[1747182173826,62.76,184.1,184.04,5.4326]
[1747182174540,5.4317,184.08,184.04,5.4326]
[1747182175036,62.76,184.1,183.99,125.56]
[1747182175237,62.7,184.12,183.99,125.56]
[1747182175531,62.76,184.14,184.01,8.63455699]
[1747182175735,5.4309,184.11,184.02,3.6388]
[1747182175937,5.4309,184.11,184.02,5.3857]
[1747182176128,5.4304,184.12,184.02,5.3857]
[1747182176934,5.4304,184.12,184.08,5.4315]
[1747182177639,62.86,184.15,184.1,5.4309]